bitfinex/quotes_BTCUSD_20250618
["timestamp","ask_amount","ask_price","bid_price","bid_amount"]
[1750257503632,0.02848893,105300.0,105290.0,0.67182004]
[1750257503852,0.01899226,105300.0,105290.0,0.67182004]
[1750257504061,0.00949586,105300.0,105290.0,0.66232238]
[1750257504268,0.01899208,105300.0,105290.0,0.66232238]
[1750257504480,0.02848812,105300.0,105290.0,0.66232238]
[1750257505742,0.00949586,105300.0,105290.0,0.66232238]
[1750257506003,0.00949586,105300.0,105290.0,0.69352238]
[1750257506209,0.00949586,105300.0,105290.0,0.84976414]
[1750257506423,0.22848569,105310.0,105300.0,0.21842245]
[1750257506642,0.21899019,105310.0,105300.0,0.21842245]
[1750257506852,0.43739235,105310.0,105300.0,0.21842263]
[1750257507084,0.41840216,105310.0,105300.0,0.1994301]
[1750257507346,0.21899037,105310.0,105300.0,0.22791894]
[1750257507572,0.42789712,105310.0,105300.0,0.2184229]
[1750257507794,0.42789712,105310.0,105300.0,0.22791912]
[1750257508013,0.41940207,105310.0,105300.0,0.2184229]
[1750257508230,0.00949613,105300.0,105290.0,0.63970738]
[1750257508449,0.00949604,105300.0,105290.0,0.81448477]
[1750257508683,0.21999091,105310.0,105300.0,0.21842245]
[1750257508891,0.41940144,105310.0,105300.0,0.20892641]
[1750257509313,0.41840144,105310.0,105300.0,0.21842263]
[1750257509520,0.42789712,105310.0,105300.0,0.22791867]
[1750257509743,0.43739289,105310.0,105300.0,0.22791867]
[1750257510190,0.44235647,105310.0,105300.0,0.21842263]
[1750257510424,0.44235647,105310.0,105300.0,0.1994301]
[1750257510678,0.18995156,105290.0,105280.0,0.19945202]
[1750257510941,0.46224895,105290.0,105280.0,0.41105202]
[1750257511177,5.12264395,105290.0,105280.0,0.04632]
[1750257511426,0.20896628,105280.0,105270.0,0.43958391]
[1750257511654,0.41846476,105280.0,105270.0,0.43958391]
[1750257512106,0.22849488,105280.0,105270.0,0.44908266]
[1750257512393,0.2,105280.0,105270.0,0.44908266]
[1750257512610,0.02849352,105280.0,105270.0,0.50908266]
[1750257512813,0.22949352,105280.0,105270.0,0.50908266]
[1750257513240,0.21049766,105280.0,105270.0,0.50908266]
[1750257513675,0.23899208,105280.0,105270.0,0.50908266]
[1750257513895,0.23899208,105280.0,105270.0,0.29748266]
[1750257514110,0.22949379,105280.0,105270.0,0.50904266]
[1750257514534,0.41946412,105280.0,105270.0,0.06]
[1750257514775,0.44316619,105280.0,105270.0,0.27156]
[1750257514993,5.12656299,105280.0,105270.0,0.16524]
[1750257515203,4.87939277,105270.0,105260.0,0.2743089]
[1750257515419,0.41848534,105270.0,105260.0,0.43019051]
[1750257515641,0.2,105270.0,105260.0,0.43969016]
[1750257515851,0.21049775,105280.0,105270.0,0.21848471]
[1750257516275,0.23899199,105280.0,105270.0,0.21848471]
[1750257516494,0.2389919,105280.0,105270.0,0.21848471]
[1750257516704,0.42896214,105280.0,105270.0,0.37418596]
[1750257516919,0.43846062,105280.0,105270.0,0.38368489]
[1750257517130,0.24749102,105280.0,105270.0,0.39318364]
[1750257517335,0.23799254,105280.0,105270.0,0.39318364]
[1750257517986,0.23899254,105280.0,105270.0,0.39318364]
[1750257518372,0.21049766,105280.0,105270.0,0.39318364]
[1750257518597,0.22949325,105280.0,105270.0,0.39318364]
[1750257518822,0.23899136,105280.0,105270.0,0.39318364]
[1750257519030,0.22949325,105280.0,105270.0,0.39318364]
[1750257519238,0.001,105280.0,105270.0,0.4894254]
[1750257519450,0.001,105280.0,105270.0,0.5509254]
[1750257519879,0.01049775,105280.0,105270.0,0.5509254]
[1750257520086,0.001,105280.0,105270.0,0.5509254]
[1750257520702,0.001,105280.0,105270.0,0.6109254]
[1750257520922,0.001,105280.0,105270.0,0.96546625]
[1750257521384,0.001,105280.0,105270.0,1.01546625]
[1750257522235,0.2,105320.0,105310.0,0.21840171]
[1750257522473,4.71151616,105330.0,105320.0,0.20886978]
[1750257522684,0.20949316,105330.0,105320.0,0.20886978]
[1750257522901,0.2,105330.0,105320.0,0.20886978]
[1750257523113,0.23797026,105340.0,105330.0,0.21836025]
[1750257523320,0.02847738,105340.0,105330.0,0.38348025]
[1750257523538,0.03811146,105340.0,105330.0,0.38348025]
[1750257523772,0.23811137,105340.0,105330.0,0.38348025]
[1750257523978,0.24760425,105340.0,105330.0,0.38348025]
[1750257524386,0.04760425,105340.0,105330.0,0.38348025]
[1750257524595,0.43746692,105340.0,105330.0,0.38348043]
[1750257524805,0.40898864,105340.0,105330.0,0.35599942]
[1750257525045,0.21398864,105340.0,105330.0,0.37498691]
[1750257525231,0.41398864,105340.0,105330.0,0.16612]
[1750257525484,4.96909321,105340.0,105330.0,0.001]
[1750257525690,5.08804259,105340.0,105330.0,0.001]
[1750257525897,5.10877725,105340.0,105330.0,0.001]
[1750257526762,5.10877441,105340.0,105330.0,0.001]
[1750257526972,5.1087746,105340.0,105330.0,0.001]
[1750257527182,5.08606963,105340.0,105330.0,0.001]
[1750257527421,5.10877813,105340.0,105330.0,0.001]
[1750257527667,5.10877813,105340.0,105330.0,0.2193607]
[1750257527668,4.73677016,105340.0,105330.0,0.2193607]
[1750257527883,0.22712669,105340.0,105330.0,0.22885404]
[1750257528513,0.23661876,105340.0,105330.0,0.22885404]
[1750257528949,0.23661867,105340.0,105330.0,0.22885404]
[1750257529796,0.24611155,105340.0,105330.0,0.22885404]
[1750257530241,0.24611146,105340.0,105330.0,0.22885404]
[1750257530879,0.25560434,105340.0,105330.0,0.22885404]
[1750257531098,0.23661867,105340.0,105330.0,0.22885404]
[1750257531319,0.22712597,105340.0,105330.0,0.22885404]
[1750257531601,0.0081412,105340.0,105330.0,0.7251958]
[1750257531821,0.0081412,105340.0,105330.0,0.73973665]
[1750257532467,0.21510759,105380.0,105370.0,0.28117734]
[1750257532468,0.01510759,105380.0,105370.0,0.28117734]
[1750257532695,0.00672198,105380.0,105370.0,0.5885391]
[1750257533778,0.00672198,105380.0,105370.0,0.60307995]
[1750257533994,0.00672198,105380.0,105370.0,0.94507995]
[1750257535052,0.00672198,105380.0,105370.0,0.99507995]
[1750257535686,0.00672198,105380.0,105370.0,0.99707995]
[1750257535897,0.00261034,105380.0,105370.0,0.99707995]
[1750257536106,0.00261034,105380.0,105370.0,1.41383991]
[1750257536312,0.00261034,105380.0,105370.0,1.04507995]
[1750257536520,0.00261034,105380.0,105370.0,1.05007995]
[1750257536733,0.00065526,105380.0,105370.0,1.04807995]
[1750257536945,0.00165526,105380.0,105370.0,1.05607995]
[1750257537362,0.00065526,105380.0,105370.0,1.04807995]
[1750257537568,0.00065526,105380.0,105370.0,1.04307995]
[1750257537775,0.00165526,105380.0,105370.0,1.05307995]
[1750257538448,5e-05,105390.0,105380.0,1.10245744]
[1750257538661,0.00019106,105390.0,105380.0,0.83193924]
[1750257539521,0.00019106,105390.0,105380.0,1.04289924]
[1750257540153,0.00119106,105390.0,105380.0,1.4176592]
[1750257540392,0.00119106,105390.0,105380.0,0.86882049]
[1750257540604,0.00119106,105390.0,105380.0,0.84493924]
[1750257540822,0.00119106,105390.0,105380.0,0.79493924]
[1750257541037,0.00119106,105390.0,105380.0,1.00447839]
[1750257541255,0.00119106,105390.0,105380.0,0.95839839]
[1750257541471,0.00119106,105390.0,105380.0,1.18385924]
[1750257541952,0.00119106,105390.0,105380.0,0.97293924]
[1750257542174,0.00119106,105390.0,105380.0,0.32749839]
[1750257542403,0.00119106,105390.0,105380.0,0.34511109]
[1750257542404,0.21942743,105390.0,105380.0,0.34511109]
[1750257542621,0.21942743,105390.0,105380.0,0.53837911]
[1750257542834,0.21942743,105390.0,105380.0,0.54786812]
[1750257543050,0.01067881,105390.0,105380.0,0.55735695]
[1750257543256,0.01067881,105390.0,105380.0,0.55235695]
[1750257543465,0.01916674,105390.0,105380.0,0.54435695]
[1750257543680,0.02865476,105390.0,105380.0,0.54935695]
[1750257543888,0.00019106,105390.0,105380.0,0.33847695]
[1750257544101,0.00019106,105390.0,105380.0,0.54935695]
[1750257545160,0.00019106,105390.0,105380.0,0.5638978]
[1750257545364,0.00019106,105390.0,105380.0,0.6277978]
[1750257546010,0.00019106,105390.0,105380.0,0.5638578]
[1750257546634,0.00019106,105390.0,105380.0,0.9038578]
[1750257547489,0.00019106,105390.0,105380.0,0.9666578]
[1750257548934,0.00019106,105390.0,105380.0,0.6930178]
[1750257549142,0.00019106,105390.0,105380.0,0.9038578]
[1750257550004,0.00019106,105390.0,105380.0,0.6930178]
[1750257550209,0.00019106,105390.0,105380.0,0.9036578]
[1750257551045,0.00019106,105390.0,105380.0,0.9655578]
[1750257553500,0.00019106,105390.0,105380.0,0.78439695]
[1750257553722,0.00019106,105390.0,105380.0,0.94907695]
[1750257553975,0.00019106,105390.0,105380.0,1.0290178]
[1750257555029,0.00019106,105390.0,105380.0,0.9690178]
[1750257555240,0.00019106,105390.0,105380.0,1.1192178]
[1750257556127,0.00019106,105390.0,105380.0,1.0692178]
[1750257556337,0.00019106,105390.0,105380.0,1.1192178]
[1750257558737,0.00019106,105390.0,105380.0,1.1792178]
[1750257558945,0.00019106,105390.0,105380.0,0.9143378]
[1750257559155,0.00019106,105390.0,105380.0,0.80187695]
[1750257559388,0.00902978,105390.0,105380.0,0.95103695]
[1750257559596,0.00902978,105390.0,105380.0,0.94803695]
[1750257559806,0.00902978,105390.0,105380.0,0.78339695]
[1750257560014,0.00902978,105390.0,105380.0,0.95503695]
[1750257560278,0.00902978,105390.0,105380.0,0.94403695]
[1750257560495,0.00902978,105390.0,105380.0,0.94603695]
[1750257560715,0.00902978,105390.0,105380.0,1.01413695]
[1750257561135,0.00902978,105390.0,105380.0,1.0286778]
[1750257562000,0.00902978,105390.0,105380.0,1.1788778]
[1750257562421,0.00902978,105390.0,105380.0,1.59563776]
[1750257562631,0.00019106,105390.0,105380.0,1.2288778]
[1750257563218,0.00019106,105390.0,105380.0,1.0183178]
[1750257563462,0.00019106,105390.0,105380.0,1.2218378]
[1750257563666,0.00019106,105390.0,105380.0,1.1758378]
[1750257563874,0.00019106,105390.0,105380.0,1.2328378]
[1750257564085,0.00019106,105390.0,105380.0,1.1828378]
[1750257564297,0.00019106,105390.0,105380.0,1.2328378]
[1750257565650,0.00019106,105390.0,105380.0,1.59959776]
[1750257567157,0.00019106,105390.0,105380.0,1.76874776]
[1750257567386,0.01005,105400.0,105390.0,0.83567677]
[1750257567584,0.01005,105400.0,105390.0,1.41323849]
[1750257567765,0.01005,105400.0,105390.0,1.14235853]
[1750257567965,0.01005,105400.0,105390.0,1.53299974]
[1750257568564,0.01005,105400.0,105390.0,1.14235853]
[1750257568790,0.01005,105400.0,105390.0,1.09235853]
[1750257569191,0.01005,105400.0,105390.0,1.14235853]
[1750257569457,0.01005,105400.0,105390.0,1.09835853]
[1750257570067,0.01005,105400.0,105390.0,1.51311849]
[1750257570294,0.01005,105400.0,105390.0,1.09935853]
[1750257570498,0.01005,105400.0,105390.0,0.93491853]
[1750257570715,0.01005,105400.0,105390.0,1.14531853]
[1750257570895,0.01005,105400.0,105390.0,0.93279853]
[1750257571338,0.01005,105400.0,105390.0,1.09731853]
[1750257571540,0.01005,105400.0,105390.0,1.51407849]
[1750257571948,0.01005,105400.0,105390.0,1.14731853]
[1750257572604,0.01005,105400.0,105390.0,1.51407849]
[1750257573475,0.01005,105400.0,105390.0,1.51403849]
[1750257573851,0.01005,105400.0,105390.0,1.30367849]
[1750257574063,0.01005,105400.0,105390.0,1.51403849]
[1750257575631,0.01005,105400.0,105390.0,1.14727853]
[1750257575827,0.01005,105400.0,105390.0,0.88691853]
[1750257576051,0.01005,105400.0,105390.0,1.08273768]
[1750257576248,0.01005,105400.0,105390.0,1.13273768]
[1750257576850,0.01005,105400.0,105390.0,1.14727853]
[1750257577074,0.01005,105400.0,105390.0,1.09727853]
[1750257577279,0.01005,105400.0,105390.0,1.14727853]
[1750257577491,0.01005,105400.0,105390.0,1.51403849]
[1750257578172,0.01005,105400.0,105390.0,1.33217649]
[1750257578401,0.01005,105400.0,105390.0,1.12573653]
[1750257578610,0.01005,105400.0,105390.0,1.17573653]
[1750257579031,0.01005,105400.0,105390.0,1.12573653]
[1750257579715,0.01005,105400.0,105390.0,0.93691853]
[1750257579972,0.01005,105400.0,105390.0,1.34955849]
[1750257580193,0.01005,105400.0,105390.0,1.46399849]
[1750257580424,0.01005,105400.0,105390.0,1.14723853]
[1750257580632,0.01005,105400.0,105390.0,1.51399849]
[1750257581055,0.01005,105400.0,105390.0,1.51387849]
[1750257581468,0.01005,105400.0,105390.0,0.93691853]
[1750257581686,0.01005,105400.0,105390.0,1.09711853]
[1750257583043,0.01005,105400.0,105390.0,0.93417853]
[1750257583339,0.01005,105400.0,105390.0,0.96467853]
[1750257583602,0.01005,105400.0,105390.0,1.51297849]
[1750257584910,0.01005,105400.0,105390.0,1.14621853]
[1750257585143,0.01005,105400.0,105390.0,1.51297849]
[1750257585626,0.01005,105400.0,105390.0,1.14621853]
[1750257586621,0.01005,105400.0,105390.0,1.51297849]
[1750257587898,0.01005,105400.0,105390.0,1.14621853]
[1750257588406,0.01005,105400.0,105390.0,1.09617853]
[1750257588665,0.01005,105400.0,105390.0,0.85941768]
[1750257588917,0.01005,105400.0,105390.0,1.01953768]
[1750257589172,0.01005,105400.0,105390.0,0.87395853]
[1750257589430,0.01005,105400.0,105390.0,0.98413853]
[1750257590424,0.01005,105400.0,105390.0,0.93413853]
[1750257590671,0.01005,105400.0,105390.0,1.51253849]
[1750257590930,0.01005,105400.0,105390.0,0.77401853]
[1750257591179,0.01005,105400.0,105390.0,0.98413853]
[1750257591457,0.01005,105400.0,105390.0,1.01503853]
[1750257591740,0.01005,105400.0,105390.0,0.93715853]
[1750257591985,0.01005,105400.0,105390.0,1.14727853]
[1750257592773,0.01005,105400.0,105390.0,1.09727853]
[1750257593046,0.01005,105400.0,105390.0,1.14727853]
[1750257595312,0.01005,105400.0,105390.0,1.09727853]
[1750257595553,0.01005,105400.0,105390.0,1.14727853]
[1750257596531,0.01005,105400.0,105390.0,1.09727853]
[1750257596740,0.01005,105400.0,105390.0,1.04733853]
[1750257597003,0.01005,105400.0,105390.0,1.04729853]
[1750257597695,0.01005,105400.0,105390.0,1.01639853]
[1750257597938,0.01005,105400.0,105390.0,0.98409853]
[1750257598942,0.01005,105400.0,105390.0,0.76977853]
[1750257599181,0.01005,105400.0,105390.0,1.03399853]
[1750257599908,0.01005,105400.0,105390.0,1.03199853]
[1750257600144,0.01005,105400.0,105390.0,1.46755849]
[1750257600609,0.01005,105400.0,105390.0,1.51755849]
[1750257600834,0.01005,105400.0,105390.0,1.15079853]
[1750257601603,0.01005,105400.0,105390.0,0.98199853]
[1750257602045,0.01005,105400.0,105390.0,0.98499853]
[1750257602956,0.01005,105400.0,105390.0,0.88505853]
[1750257604013,0.01005,105400.0,105390.0,1.09749853]
[1750257604446,0.01005,105400.0,105390.0,1.03499853]
[1750257604657,0.01005,105400.0,105390.0,1.11629853]
[1750257604873,0.01005,105400.0,105390.0,1.51565849]
[1750257606234,0.01005,105400.0,105390.0,1.61004876]
[1750257608570,0.01005,105400.0,105390.0,1.2432888]
[1750257608786,0.01005,105400.0,105390.0,1.2432088]
[1750257609006,0.01005,105400.0,105390.0,0.9651088]
[1750257609238,0.01005,105400.0,105390.0,0.92071853]
[1750257609448,0.01005,105400.0,105390.0,1.08491853]
[1750257610313,0.01005,105400.0,105390.0,0.98475853]
[1750257610710,0.01005,105400.0,105390.0,0.82055853]
[1750257610918,0.01005,105400.0,105390.0,0.77495853]
[1750257611128,0.01005,105400.0,105390.0,0.82055853]
[1750257611334,0.01005,105400.0,105390.0,0.98475853]
[1750257613331,0.01005,105400.0,105390.0,0.82055853]
[1750257613535,0.01005,105400.0,105390.0,0.98471853]
[1750257613950,0.04325,105400.0,105390.0,0.98471853]
[1750257614234,0.01005,105400.0,105390.0,0.98471853]
[1750257614443,0.01005,105400.0,105390.0,0.88477853]
[1750257619530,0.01005,105400.0,105390.0,0.72061853]
[1750257619736,0.07535,105400.0,105390.0,0.88473853]
[1750257619940,0.07535,105400.0,105390.0,0.32047768]
[1750257620117,0.07535,105400.0,105390.0,0.53019768]
[1750257620335,0.07535,105400.0,105390.0,0.87019768]
[1750257620592,0.07535,105400.0,105390.0,0.53019768]
[1750257620796,0.07535,105400.0,105390.0,0.36607768]
[1750257621042,0.07535,105400.0,105390.0,0.52419768]
[1750257622318,0.07635,105400.0,105390.0,0.52419768]
[1750257622950,0.07635,105400.0,105390.0,0.31447768]
[1750257623165,0.07735,105400.0,105390.0,0.52419768]
[1750257623386,0.07635,105400.0,105390.0,0.52419768]
[1750257623595,0.07935,105400.0,105390.0,0.52419768]
[1750257624894,0.0629,105380.0,105350.0,0.18981224]
[1750257625119,0.24149162,105350.0,105340.0,0.1899614]
[1750257625354,0.29071021,105350.0,105340.0,0.19992485]
[1750257625611,0.10086675,105350.0,105340.0,0.20941782]
[1750257625805,0.09137477,105350.0,105340.0,0.22840295]
[1750257626194,0.29071084,105350.0,105340.0,0.21891061]
[1750257626395,0.52241096,105350.0,105340.0,0.21891061]
[1750257626597,0.31291916,105350.0,105340.0,0.20941782]
[1750257626972,0.31291916,105350.0,105340.0,0.22840313]
[1750257627139,0.31691916,105350.0,105340.0,0.32464489]
[1750257627348,0.31691916,105350.0,105340.0,0.31515237]
[1750257627544,0.31691916,105350.0,105340.0,0.19043178]
[1750257627790,0.29793511,105350.0,105340.0,0.00057038]
[1750257628007,0.28844295,105350.0,105340.0,0.00057038]
[1750257628238,5.17327007,105340.0,105330.0,0.21846106]
[1750257628438,0.49694665,105340.0,105330.0,0.21893184]
[1750257628649,0.48745386,105340.0,105330.0,0.19994417]
[1750257629105,0.08258839,105320.0,105310.0,0.2088043]
[1750257629311,0.10828797,105320.0,105310.0,0.64551691]
[1750257629526,0.12727708,105320.0,105310.0,0.64551691]
[1750257629746,0.48198026,105320.0,105310.0,0.29602213]
[1750257629948,0.30768074,105320.0,105310.0,0.20937778]
[1750257630146,0.32475067,105320.0,105310.0,0.20937778]
[1750257630375,0.32675067,105320.0,105310.0,0.2028821]
[1750257630796,0.32475067,105320.0,105310.0,0.22187328]
[1750257631017,0.48883067,105320.0,105310.0,0.22187328]
[1750257631226,5.18535916,105320.0,105310.0,0.00347085]
[1750257631437,0.25281548,105310.0,105300.0,0.19937132]
[1750257631653,0.32407068,105310.0,105300.0,0.21883598]
[1750257631859,0.32407068,105310.0,105300.0,0.22833265]
[1750257632069,0.1341543,105310.0,105300.0,0.23782869]
[1750257632290,0.1436498,105310.0,105300.0,0.23782869]
[1750257632506,0.16264107,105310.0,105300.0,0.23782878]
[1750257632713,0.09228857,105300.0,105290.0,0.21837642]
[1750257632918,0.49171867,105300.0,105290.0,0.21884973]
[1750257633125,0.3439826,105300.0,105290.0,0.21884982]
[1750257633335,0.33448665,105300.0,105290.0,0.19985549]
[1750257633594,0.14455313,105300.0,105290.0,0.22834721]
[1750257633806,0.34455313,105300.0,105290.0,0.22834721]
[1750257633990,0.34455313,105300.0,105290.0,0.23784415]
[1750257634187,0.3445525,105300.0,105290.0,0.23784415]
[1750257634421,0.15404908,105300.0,105290.0,0.23784415]
[1750257634846,0.15404899,105300.0,105290.0,0.23784415]
[1750257635261,0.34398314,105300.0,105290.0,0.19042415]
[1750257635485,5.02701352,105300.0,105290.0,0.00047259]
[1750257635707,5.02901352,105300.0,105290.0,0.00047259]
[1750257635955,4.99046747,105300.0,105290.0,0.00047259]
[1750257636193,5.01703182,105300.0,105290.0,0.00047259]
[1750257636645,5.01503182,105300.0,105290.0,0.00047259]
[1750257637037,5.01503182,105300.0,105270.0,0.20888706]
[1750257637038,0.48166412,105280.0,105270.0,0.20888769]
[1750257637266,0.5056326,105280.0,105270.0,0.22788537]
[1750257637462,0.3056326,105280.0,105270.0,0.23738457]
[1750257637661,0.5056326,105280.0,105270.0,0.23738457]
[1750257637927,0.51513089,105280.0,105270.0,0.22788582]
[1750257638174,0.4956032,105280.0,105270.0,0.19938876]
[1750257638680,0.4766068,105280.0,105270.0,0.19938876]
[1750257638905,0.19948658,105270.0,105260.0,0.1899258]
[1750257639107,0.0817993,105260.0,105250.0,0.19942236]
[1750257639315,0.27229956,105260.0,105250.0,0.20892345]
[1750257639544,0.32207837,105260.0,105250.0,0.218424]
[1750257639776,0.29573829,105260.0,105250.0,0.20892345]
[1750257640000,0.49573811,105260.0,105250.0,0.218424]
[1750257640142,0.30523812,105260.0,105250.0,0.218424]
[1750257640362,0.47682575,105260.0,105250.0,0.218424]
[1750257640576,0.4883254,105260.0,105250.0,0.218424]
[1750257640784,0.29782523,105260.0,105250.0,0.218424]
[1750257641353,0.30732524,105260.0,105250.0,0.218424]
[1750257641933,0.30182523,105260.0,105250.0,0.218424]
[1750257642141,0.2923254,105260.0,105250.0,0.218424]
[1750257642516,0.30182523,105260.0,105250.0,0.218424]
[1750257642924,0.31132533,105260.0,105250.0,0.218424]
[1750257643126,0.30132745,105260.0,105250.0,0.218424]
[1750257643515,0.27526088,105260.0,105250.0,0.218424]
[1750257643894,0.31082746,105260.0,105250.0,0.21842409]
[1750257644122,0.30132745,105260.0,105250.0,0.22792464]
[1750257644398,0.31082737,105260.0,105250.0,0.22792464]
[1750257644575,0.30132745,105260.0,105250.0,0.22792464]
[1750257644792,0.51983354,105260.0,105250.0,0.21842409]
[1750257644939,0.51983354,105260.0,105250.0,0.21842418]
[1750257645522,0.51983354,105260.0,105250.0,0.22792473]
[1750257645734,0.14662737,105260.0,105250.0,0.21842418]
[1750257645945,0.30376091,105260.0,105250.0,0.22792473]
[1750257646159,0.4937676,105260.0,105250.0,0.22792473]
[1750257646358,0.28972097,105260.0,105250.0,0.22792473]
[1750257646684,0.3087209,105260.0,105250.0,0.21842418]
[1750257646886,0.3087209,105260.0,105250.0,0.22792482]
[1750257647185,0.30921492,105260.0,105250.0,0.23742537]
[1750257647852,0.49922062,105260.0,105250.0,0.22792482]
[1750257648089,0.30921492,105260.0,105250.0,0.23742537]
[1750257648265,0.48972043,105260.0,105250.0,0.23742537]
[1750257648439,0.39270003,105260.0,105250.0,0.23742537]
[1750257648880,0.59220592,105260.0,105250.0,0.22792482]
[1750257649080,0.39220592,105260.0,105250.0,0.21842418]
[1750257649280,0.23460022,105260.0,105250.0,0.23656458]
[1750257649481,0.23460022,105260.0,105250.0,0.22792473]
[1750257649678,0.25588006,105260.0,105250.0,0.22792473]
[1750257649890,0.44588576,105260.0,105250.0,0.22792473]
[1750257650274,4.766823,105280.0,105270.0,0.22797128]
[1750257650475,0.42796132,105280.0,105270.0,0.19947476]
[1750257650679,0.01899921,105260.0,105250.0,0.09671482]
[1750257650913,0.44210563,105260.0,105250.0,0.00047306]
[1750257651080,0.2658058,105260.0,105250.0,0.00047306]
[1750257651284,5.044081,105260.0,105250.0,0.00047306]
[1750257651671,5.14032276,105260.0,105250.0,0.00047306]
[1750257651875,5.18603143,105260.0,105250.0,0.00047306]
[1750257652116,0.1995437,105240.0,105230.0,0.0001]
[1750257652310,0.1995437,105240.0,105230.0,0.00057324]
[1750257652311,5.17567537,105240.0,105230.0,0.00057324]
[1750257652898,5.1496088,105240.0,105230.0,0.00057324]
[1750257653101,5.24585056,105240.0,105230.0,0.00057324]
[1750257653740,5.13946851,105240.0,105230.0,0.00057324]
[1750257653946,5.1299667,105240.0,105230.0,0.00057324]
[1750257654767,5.1496088,105240.0,105230.0,0.00057324]
[1750257654983,5.22620846,105240.0,105230.0,0.00057324]
[1750257655162,5.24885056,105240.0,105230.0,0.00057324]
[1750257655371,5.32939768,105240.0,105230.0,0.00057324]
[1750257655604,5.39393853,105240.0,105230.0,0.00057324]
[1750257656093,5.42250753,105240.0,105230.0,0.00057324]
[1750257656369,5.4692162,105240.0,105230.0,0.00057324]
[1750257656607,5.4692162,105240.0,105220.0,0.0001]
[1750257656608,5.05709309,105230.0,105220.0,0.0001]
[1750257656848,5.15333485,105230.0,105220.0,0.000574]
[1750257657080,5.26912617,105230.0,105220.0,0.000574]
[1750257657309,4.92792794,105210.0,105200.0,0.0001]
[1750257657545,5.0241697,105210.0,105200.0,0.0001]
[1750257657795,4.91844258,105200.0,105190.0,0.0001]
[1750257658044,5.04075091,105200.0,105190.0,0.0001]
[1750257658253,5.06039301,105200.0,105190.0,0.00883852]
[1750257658485,5.06039301,105200.0,105190.0,0.0001]
[1750257659681,5.06043301,105200.0,105190.0,0.0001]
[1750257659906,5.06643301,105200.0,105190.0,0.0001]
[1750257660373,5.06343301,105200.0,105190.0,0.0001]
[1750257660617,5.06343301,105200.0,105150.0,0.0001]
[1750257660618,0.20920437,105160.0,105150.0,0.0001]
[1750257660830,4.91122737,105160.0,105150.0,0.00883188]
[1750257661510,5.08497668,105160.0,105150.0,0.19981468]
[1750257661725,0.00950859,105160.0,105150.0,0.22834417]
[1750257661938,0.19969265,105170.0,105160.0,0.22822182]
[1750257661939,4.702023,105170.0,105160.0,0.22822182]
[1750257662149,4.702023,105170.0,105160.0,0.25892182]
[1750257662366,0.35442132,105180.0,105170.0,0.21869244]
[1750257662367,4.702023,105180.0,105170.0,0.21869244]
[1750257662555,4.72103692,105180.0,105170.0,0.21869244]
[1750257662794,4.71152969,105180.0,105170.0,0.21869244]
[1750257662999,0.02852061,105180.0,105170.0,0.25189244]
[1750257663218,0.22852061,105180.0,105170.0,0.25189244]
[1750257663425,0.24753517,105180.0,105170.0,0.25189244]
[1750257663634,0.23802775,105180.0,105170.0,0.25189244]
[1750257663844,0.24757508,105180.0,105170.0,0.25189253]
[1750257664048,0.42821887,105180.0,105170.0,0.24238484]
[1750257664292,0.20918448,105170.0,105150.0,0.05535163]
[1750257664528,4.930245,105160.0,105150.0,0.2807758]
[1750257664748,0.01901718,105160.0,105150.0,0.29028539]
[1750257664975,0.21901718,105160.0,105150.0,0.29028539]
[1750257665257,0.20918522,105170.0,105160.0,0.2805135]
[1750257665471,0.21901619,105170.0,105160.0,0.29002218]
[1750257665699,4.702023,105170.0,105160.0,0.29002218]
[1750257665935,0.20950769,105170.0,105160.0,0.38626394]
[1750257666161,4.71153069,105170.0,105160.0,0.40365934]
[1750257666382,0.42820031,105170.0,105160.0,0.38464189]
[1750257666590,0.42920031,105170.0,105160.0,0.30290908]
[1750257666807,4.91220775,105170.0,105160.0,0.005]
[1750257666982,4.75184019,105170.0,105160.0,0.007]
[1750257667603,4.75188019,105170.0,105160.0,0.007]
[1750257668229,4.75188019,105170.0,105160.0,0.20669569]
[1750257668433,4.75188019,105170.0,105160.0,0.007]
[1750257668641,4.71357078,105170.0,105160.0,0.22571314]
[1750257668850,0.00204,105170.0,105160.0,0.3862549]
[1750257669067,0.00204,105170.0,105160.0,0.40365142]
[1750257669068,0.20204,105170.0,105160.0,0.40365142]
[1750257669487,0.22105547,105170.0,105160.0,0.40365082]
[1750257669947,4.99900755,105170.0,105160.0,0.02439592]
[1750257670179,4.97999172,105170.0,105160.0,0.007]
[1750257672418,4.71357096,105170.0,105160.0,0.22571323]
[1750257672628,4.74209502,105170.0,105160.0,0.29101323]
[1750257672856,4.75160334,105170.0,105160.0,0.29101323]
[1750257673061,4.74209502,105170.0,105160.0,0.29101323]
[1750257673475,0.01154778,105170.0,105160.0,0.300522]
[1750257673680,0.22105574,105170.0,105160.0,0.300522]
[1750257674095,0.01154769,105170.0,105160.0,0.31793076]
[1750257674327,0.04007193,105170.0,105160.0,0.31793076]
[1750257674535,0.43974854,105170.0,105160.0,0.29891331]
[1750257674743,0.04007256,105170.0,105160.0,0.30842199]
[1750257674942,0.24007256,105170.0,105160.0,0.29891331]
[1750257675152,0.03056424,105170.0,105160.0,0.30842199]
[1750257675359,0.43974926,105170.0,105160.0,0.29891331]
[1750257675561,0.02105637,105170.0,105160.0,0.30842199]
[1750257675769,0.22105637,105170.0,105160.0,0.30842199]
[1750257676393,0.03056424,105170.0,105160.0,0.30844223]
[1750257676599,0.04007256,105170.0,105160.0,0.30844223]
[1750257677012,0.24007256,105170.0,105160.0,0.30844223]
[1750257677439,0.00204,105170.0,105160.0,0.40468399]
[1750257679309,0.00204,105170.0,105160.0,0.40470853]
[1750257680383,0.00204,105170.0,105160.0,0.56898853]
[1750257680790,0.00204,105170.0,105160.0,0.55153499]
[1750257682598,0.4207319,105170.0,105160.0,0.36823736]
[1750257682803,0.24007184,105170.0,105160.0,0.56100385]
[1750257683009,0.43024013,105170.0,105160.0,0.3777464]
[1750257683238,0.42073253,105170.0,105160.0,0.45525359]
[1750257683669,0.23056424,105170.0,105160.0,0.46476227]
[1750257683891,0.23056424,105170.0,105160.0,0.30052227]
[1750257684108,0.23056424,105170.0,105160.0,0.46476227]
[1750257685044,0.22105547,105170.0,105160.0,0.46476227]
[1750257685270,0.2115476,105170.0,105160.0,0.46476227]
[1750257685506,0.22105538,105170.0,105160.0,0.46476227]
[1750257685984,0.00204,105170.0,105160.0,0.56100403]
[1750257687328,0.01154778,105170.0,105160.0,0.56100403]
[1750257687556,0.02105565,105170.0,105160.0,0.56100412]
[1750257687778,0.05330379,105170.0,105160.0,0.43176236]
[1750257688023,0.45298049,105170.0,105160.0,0.2389956]
[1750257688276,0.45298049,105170.0,105160.0,0.39946209]
[1750257688277,0.24379556,105170.0,105160.0,0.39946209]
[1750257688493,0.25330379,105170.0,105160.0,0.39946209]
[1750257688708,0.24379565,105170.0,105160.0,0.39946209]
[1750257688945,0.25298004,105170.0,105160.0,0.23522209]